[Event "*** Titled Tuesday Blitz"]
[Site "Chess.com"]
[Date "2021.04.20"]
[Round "10"]
[White "Vesper2018"]
[Black "1977Ivan"]
[Result "1-0"]
[WhiteElo "2541"]
[BlackElo "2691"]
[TimeControl "180+1"]
[EndTime "11:54:52 PDT"]
[Termination "Vesper2018 won on time"]

1. e4 {[%clk 0:03:00.9]} 1... c5 {[%clk 0:02:57.5]} 2. Nc3 {[%clk 0:03:00.4]}
2... Nc6 {[%clk 0:02:56.3]} 3. Bb5 {[%clk 0:02:59.3]} 3... Nd4 {[%clk
0:02:56.6]} 4. Bc4 {[%clk 0:02:58.2]} 4... e6 {[%clk 0:02:56.5]} 5. Nge2 {[%clk
0:02:58]} 5... a6 {[%clk 0:02:56]} 6. a4 {[%clk 0:02:57.5]} 6... Nf6 {[%clk
0:02:51.3]} 7. O-O {[%clk 0:02:56.2]} 7... d5 {[%clk 0:02:48.2]} 8. exd5 {[%clk
0:02:55.1]} 8... exd5 {[%clk 0:02:49.1]} 9. Ba2 {[%clk 0:02:55.6]} 9... Bd6
{[%clk 0:02:44.4]} 10. d3 {[%clk 0:02:37.2]} 10... O-O {[%clk 0:02:00.3]} 11.
Nxd4 {[%clk 0:02:35.6]} 11... cxd4 {[%clk 0:02:01.2]} 12. Ne2 {[%clk 0:02:36.1]}
12... Ng4 {[%clk 0:01:42.2]} 13. h3 {[%clk 0:02:29.1]} 13... Nh2 {[%clk
0:01:41.1]} 14. Re1 {[%clk 0:02:15.9]} 14... Qh4 {[%clk 0:01:40.2]} 15. Bxd5
{[%clk 0:02:01.8]} 15... Bg4 {[%clk 0:01:16]} 16. hxg4 {[%clk 0:01:12.8]} 16...
Nxg4 {[%clk 0:01:16.9]} 17. Ng3 {[%clk 0:00:53.5]} 17... Bxg3 {[%clk 0:00:15.2]}
18. fxg3 {[%clk 0:00:52.9]} 18... Qh2+ {[%clk 0:00:07]} 19. Kf1 {[%clk
0:00:52.7]} 19... Qxg3 {[%clk 0:00:06.6]} 20. Qd2 {[%clk 0:00:20.1]} 20... Rae8
{[%clk 0:00:05.5]} 21. Be4 {[%clk 0:00:04.8]} 21... Qh2 {[%clk 0:00:02.2]} 22.
g3 {[%clk 0:00:04.2]} 22... Qh1+ {[%clk 0:00:01.7]} 23. Bxh1 {[%clk 0:00:03.1]}
1-0

[Event "*** Titled Tuesday Blitz"]
[Site "Chess.com"]
[Date "2021.04.20"]
[Round "10"]
[White "Deepweb2020"]
[Black "chessprincesa1"]
[Result "1-0"]
[WhiteElo "2479"]
[BlackElo "2320"]
[TimeControl "180+1"]
[EndTime "11:54:52 PDT"]
[Termination "Deepweb2020 won on time"]

1. Nf3 {[%clk 0:03:00.9]} 1... Nf6 {[%clk 0:02:57.4]} 2. c4 {[%clk 0:03:00.8]}
2... e6 {[%clk 0:02:55.2]} 3. d4 {[%clk 0:02:58.2]} 3... d5 {[%clk 0:02:54.6]}
4. g3 {[%clk 0:02:57.9]} 4... dxc4 {[%clk 0:02:53.1]} 5. Bg2 {[%clk 0:02:57.8]}
5... Be7 {[%clk 0:02:53.7]} 6. Qc2 {[%clk 0:02:56.8]} 6... b5 {[%clk 0:02:39.8]}
7. a4 {[%clk 0:02:55.8]} 7... c6 {[%clk 0:02:35.8]} 8. O-O {[%clk 0:02:51.8]}
8... O-O {[%clk 0:02:30.7]} 9. Nbd2 {[%clk 0:02:50.6]} 9... Nd5 {[%clk 0:02:26]}
10. b3 {[%clk 0:02:47.7]} 10... c3 {[%clk 0:02:07.3]} 11. Ne4 {[%clk 0:02:46.6]}
11... b4 {[%clk 0:02:02.7]} 12. a5 {[%clk 0:02:46.7]} 12... Nd7 {[%clk
0:01:45.8]} 13. Ra4 {[%clk 0:02:44.5]} 13... f5 {[%clk 0:01:44.6]} 14. Neg5
{[%clk 0:02:35]} 14... N7f6 {[%clk 0:01:39.8]} 15. Ne5 {[%clk 0:02:29.4]} 15...
Qc7 {[%clk 0:01:34.1]} 16. e4 {[%clk 0:02:27.5]} 16... fxe4 {[%clk 0:01:29.5]}
17. Nxe4 {[%clk 0:02:25.8]} 17... Ba6 {[%clk 0:01:22.2]} 18. Re1 {[%clk
0:02:20.2]} 18... Rae8 {[%clk 0:00:50]} 19. Bh3 {[%clk 0:02:09.9]} 19... Bc8
{[%clk 0:00:30.7]} 20. Ng5 {[%clk 0:01:56.3]} 20... Bd6 {[%clk 0:00:21.9]} 21.
f4 {[%clk 0:01:44.7]} 21... c5 {[%clk 0:00:15.2]} 22. Bg2 {[%clk 0:01:10.4]}
22... cxd4 {[%clk 0:00:14]} 23. Qd3 {[%clk 0:00:58.2]} 23... c2 {[%clk
0:00:06.6]} 24. Re2 {[%clk 0:00:53.4]} 24... h6 {[%clk 0:00:06.6]} 25. Rxc2
{[%clk 0:00:50]} 25... Qd8 {[%clk 0:00:06.3]} 26. Ne4 {[%clk 0:00:42.2]} 26...
Nc3 {[%clk 0:00:05.3]} 27. Ra1 {[%clk 0:00:31.3]} 27... Nfxe4 {[%clk 0:00:04.1]}
28. Bxe4 {[%clk 0:00:30.2]} 28... Ba6 {[%clk 0:00:02.5]} 29. Qxd4 {[%clk
0:00:22.7]} 1-0

[Event "*** Titled Tuesday Blitz"]
[Site "Chess.com"]
[Date "2021.04.20"]
[Round "10"]
[White "Sharpchess22"]
[Black "Aradhya2000"]
[Result "0-1"]
[WhiteElo "2786"]
[BlackElo "2643"]
[TimeControl "180+1"]
[EndTime "11:54:55 PDT"]
[Termination "Aradhya2000 won by resignation"]

1. c4 {[%clk 0:03:00.9]} 1... e5 {[%clk 0:03:00]} 2. Nc3 {[%clk 0:03:00.3]} 2...
Nf6 {[%clk 0:03:00.4]} 3. Nf3 {[%clk 0:03:00.1]} 3... Nc6 {[%clk 0:03:00.9]} 4.
g3 {[%clk 0:03:00.2]} 4... g6 {[%clk 0:03:00.1]} 5. Bg2 {[%clk 0:03:00]} 5...
Bg7 {[%clk 0:03:00.7]} 6. O-O {[%clk 0:03:00.3]} 6... O-O {[%clk 0:03:01.2]} 7.
d3 {[%clk 0:03:00.6]} 7... Re8 {[%clk 0:02:56.4]} 8. Bg5 {[%clk 0:02:59.8]} 8...
h6 {[%clk 0:02:56.4]} 9. Bxf6 {[%clk 0:03:00.2]} 9... Bxf6 {[%clk 0:02:57]} 10.
Nd2 {[%clk 0:02:59.8]} 10... d6 {[%clk 0:02:55.9]} 11. Rb1 {[%clk 0:02:59.3]}
11... Ne7 {[%clk 0:02:55.7]} 12. b4 {[%clk 0:02:58.1]} 12... a5 {[%clk
0:02:54.8]} 13. bxa5 {[%clk 0:02:52.6]} 13... c6 {[%clk 0:02:54.7]} 14. Nb3
{[%clk 0:02:48.6]} 14... Nf5 {[%clk 0:02:54.1]} 15. e3 {[%clk 0:02:45.8]} 15...
h5 {[%clk 0:02:50]} 16. Na4 {[%clk 0:02:45.3]} 16... Be6 {[%clk 0:02:33.2]} 17.
Nb6 {[%clk 0:02:45.2]} 17... Ra7 {[%clk 0:02:32.8]} 18. d4 {[%clk 0:02:24.4]}
18... exd4 {[%clk 0:02:19.4]} 19. exd4 {[%clk 0:02:22.8]} 19... d5 {[%clk
0:02:16.5]} 20. cxd5 {[%clk 0:02:21.3]} 20... cxd5 {[%clk 0:02:16.8]} 21. Rc1
{[%clk 0:02:18.8]} 21... h4 {[%clk 0:02:11.1]} 22. Qd3 {[%clk 0:01:49.9]} 22...
hxg3 {[%clk 0:02:05.1]} 23. hxg3 {[%clk 0:01:48.1]} 23... Rxa5 {[%clk
0:02:00.7]} 24. Nxa5 {[%clk 0:01:46.6]} 24... Qxb6 {[%clk 0:02:00.9]} 25. Nb3
{[%clk 0:01:46.6]} 25... Nxd4 {[%clk 0:02:00.9]} 26. Nxd4 {[%clk 0:01:44.1]}
26... Bxd4 {[%clk 0:02:00.7]} 27. Rcd1 {[%clk 0:01:44.1]} 27... Bc5 {[%clk
0:01:57.1]} 28. Bxd5 {[%clk 0:01:44.1]} 28... Bxd5 {[%clk 0:01:26.3]} 29. Qxd5
{[%clk 0:01:42.6]} 29... Re2 {[%clk 0:01:26.7]} 30. Rd2 {[%clk 0:01:35]} 30...
Bxf2+ {[%clk 0:01:24.5]} 31. Kg2 {[%clk 0:01:35.3]} 31... Rxd2 {[%clk
0:01:20.3]} 32. Qxd2 {[%clk 0:01:35.1]} 32... Bd4 {[%clk 0:01:20.3]} 33. Qc2
{[%clk 0:01:33.4]} 33... Kg7 {[%clk 0:01:13.5]} 34. Qc4 {[%clk 0:01:32.2]} 34...
Bf6 {[%clk 0:01:05.1]} 35. Rf3 {[%clk 0:01:26.6]} 35... Qd6 {[%clk 0:00:56.3]}
36. Qd3 {[%clk 0:01:19.1]} 36... Qc6 {[%clk 0:00:50.5]} 37. Qb3 {[%clk
0:01:12.2]} 37... b5 {[%clk 0:00:47.8]} 38. Kh2 {[%clk 0:01:12.5]} 38... Qc5
{[%clk 0:00:38]} 39. Rf4 {[%clk 0:01:04.4]} 39... Qh5+ {[%clk 0:00:30.4]} 40.
Kg2 {[%clk 0:01:04.3]} 40... Qe2+ {[%clk 0:00:30.5]} 41. Rf2 {[%clk 0:01:02.8]}
41... Qe4+ {[%clk 0:00:30.4]} 42. Qf3 {[%clk 0:01:03.1]} 42... Qe6 {[%clk
0:00:30.5]} 43. Qb7 {[%clk 0:01:01.1]} 43... Qc4 {[%clk 0:00:25.5]} 44. Rf4
{[%clk 0:00:54.7]} 44... Qxa2+ {[%clk 0:00:24.1]} 45. Kh3 {[%clk 0:00:54]} 45...
Qe6+ {[%clk 0:00:23.3]} 46. Kg2 {[%clk 0:00:53.5]} 46... Qe2+ {[%clk 0:00:22.9]}
47. Rf2 {[%clk 0:00:52.2]} 47... Qc4 {[%clk 0:00:22.4]} 48. Qb6 {[%clk
0:00:52.3]} 48... Bd4 {[%clk 0:00:21.8]} 0-1

[Event "*** Titled Tuesday Blitz"]
[Site "Chess.com"]
[Date "2021.04.20"]
[Round "10"]
[White "anon102030"]
[Black "OriTaichman"]
[Result "1-0"]
[WhiteElo "2732"]
[BlackElo "2563"]
[TimeControl "180+1"]
[EndTime "11:54:57 PDT"]
[Termination "anon102030 won on time"]

1. e4 {[%clk 0:03:00.9]} 1... c5 {[%clk 0:02:57.5]} 2. Nc3 {[%clk 0:03:01]} 2...
Nc6 {[%clk 0:02:57.2]} 3. g3 {[%clk 0:03:01.4]} 3... Rb8 {[%clk 0:02:57.1]} 4.
Bg2 {[%clk 0:03:02.3]} 4... b5 {[%clk 0:02:57.3]} 5. d3 {[%clk 0:03:01.7]} 5...
b4 {[%clk 0:02:57.3]} 6. Nd5 {[%clk 0:03:00.7]} 6... e6 {[%clk 0:02:57.4]} 7.
Ne3 {[%clk 0:03:01.2]} 7... Nf6 {[%clk 0:02:58.1]} 8. f4 {[%clk 0:02:56.7]} 8...
d5 {[%clk 0:02:58.4]} 9. e5 {[%clk 0:02:52]} 9... Nd7 {[%clk 0:02:58.6]} 10. Nf3
{[%clk 0:02:52.6]} 10... a5 {[%clk 0:02:45.9]} 11. O-O {[%clk 0:02:52.8]} 11...
Ba6 {[%clk 0:02:46.2]} 12. f5 {[%clk 0:02:35.7]} 12... Ndxe5 {[%clk 0:02:41.8]}
13. Nxe5 {[%clk 0:02:35.3]} 13... Nxe5 {[%clk 0:02:40.3]} 14. fxe6 {[%clk
0:02:36.2]} 14... fxe6 {[%clk 0:02:34.3]} 15. Qh5+ {[%clk 0:02:36.3]} 15... Ng6
{[%clk 0:02:34.2]} 16. Ng4 {[%clk 0:02:16.9]} 16... Bd6 {[%clk 0:02:15.1]} 17.
Bg5 {[%clk 0:02:16.5]} 17... Qb6 {[%clk 0:01:52.7]} 18. Rae1 {[%clk 0:02:15.1]}
18... c4+ {[%clk 0:01:44.3]} 19. Kh1 {[%clk 0:02:13]} 19... cxd3 {[%clk
0:01:34.9]} 20. Rxe6+ {[%clk 0:02:01.1]} 20... Kd7 {[%clk 0:01:34]} 21. Be3
{[%clk 0:01:15.5]} 21... d4 {[%clk 0:00:59.9]} 22. Rf7+ {[%clk 0:00:58.3]} 22...
Ne7 {[%clk 0:00:33.8]} 23. Ne5+ {[%clk 0:00:46.7]} 23... Kd8 {[%clk 0:00:12]}
24. Rfxe7 {[%clk 0:00:32]} 24... Bxe7 {[%clk 0:00:07.1]} 25. Nf7+ {[%clk
0:00:30.2]} 25... Kd7 {[%clk 0:00:05.5]} 26. Qd5+ {[%clk 0:00:29.4]} 26... Ke8
{[%clk 0:00:03.8]} 27. Nd6+ {[%clk 0:00:16.2]} 27... Kf8 {[%clk 0:00:02.2]} 28.
Rf6+ {[%clk 0:00:14.9]} 1-0

[Event "*** Titled Tuesday Blitz"]
[Site "Chess.com"]
[Date "2021.04.20"]
[Round "10"]
[White "vova-79"]
[Black "AsaHoffmann"]
[Result "1-0"]
[WhiteElo "2535"]
[BlackElo "2348"]
[TimeControl "180+1"]
[EndTime "11:54:57 PDT"]
[Termination "vova-79 won on time"]

1. d4 {[%clk 0:03:00.9]} 1... Nf6 {[%clk 0:02:58.4]} 2. c4 {[%clk 0:02:59.5]}
2... c5 {[%clk 0:02:53.8]} 3. Nf3 {[%clk 0:02:58.6]} 3... cxd4 {[%clk
0:02:53.4]} 4. Nxd4 {[%clk 0:02:59.5]} 4... e5 {[%clk 0:02:53.1]} 5. Nb5 {[%clk
0:02:58.8]} 5... d5 {[%clk 0:02:52.5]} 6. cxd5 {[%clk 0:02:59.7]} 6... Bb4+
{[%clk 0:02:51.2]} 7. Bd2 {[%clk 0:02:47.3]} 7... Bc5 {[%clk 0:02:50.6]} 8. N5c3
{[%clk 0:02:43]} 8... e4 {[%clk 0:02:40.4]} 9. Nxe4 {[%clk 0:02:35.7]} 9... Nxe4
{[%clk 0:02:28.2]} 10. Qa4+ {[%clk 0:02:34.2]} 10... Nd7 {[%clk 0:02:15.2]} 11.
Qxe4+ {[%clk 0:02:33.6]} 11... Kf8 {[%clk 0:02:15.2]} 12. Nc3 {[%clk 0:02:30.8]}
12... Qb6 {[%clk 0:02:11.5]} 13. e3 {[%clk 0:02:24.2]} 13... Nf6 {[%clk
0:01:56.1]} 14. Qc2 {[%clk 0:02:16.3]} 14... Bd6 {[%clk 0:01:48.8]} 15. Be2
{[%clk 0:02:03.4]} 15... g6 {[%clk 0:01:28.4]} 16. O-O {[%clk 0:01:57.4]} 16...
Kg7 {[%clk 0:01:28.1]} 17. Nb5 {[%clk 0:01:38.5]} 17... Be5 {[%clk 0:01:25.1]}
18. Bc3 {[%clk 0:01:35.4]} 18... Re8 {[%clk 0:01:18.3]} 19. Rfd1 {[%clk
0:01:04.4]} 19... Bf5 {[%clk 0:01:17.3]} 20. Qb3 {[%clk 0:00:59]} 20... Bxc3
{[%clk 0:01:05.2]} 21. Nxc3 {[%clk 0:00:57]} 21... Qd6 {[%clk 0:00:46.5]} 22.
Qxb7 {[%clk 0:00:47.2]} 22... Rab8 {[%clk 0:00:43.8]} 23. Qc6 {[%clk 0:00:46.3]}
23... Qe5 {[%clk 0:00:40.5]} 24. Bf3 {[%clk 0:00:27.8]} 24... Rxb2 {[%clk
0:00:36.8]} 25. Ne2 {[%clk 0:00:27.1]} 25... Rc8 {[%clk 0:00:23.9]} 26. Qa6
{[%clk 0:00:25.9]} 26... Rcc2 {[%clk 0:00:20.6]} 27. d6 {[%clk 0:00:23.9]} 27...
Bd7 {[%clk 0:00:11.6]} 28. Rf1 {[%clk 0:00:19.5]} 28... Bb5 {[%clk 0:00:10.6]}
29. Qxa7 {[%clk 0:00:18.2]} 29... Bxe2 {[%clk 0:00:09.4]} 30. Bxe2 {[%clk
0:00:17.9]} 30... Rxe2 {[%clk 0:00:09]} 31. Rad1 {[%clk 0:00:18.8]} 1-0

[Event "*** Titled Tuesday Blitz"]
[Site "Chess.com"]
[Date "2021.04.20"]
[Round "10"]
[White "zmeeed67"]
[Black "SmoothAsAHedgehog"]
[Result "1-0"]
[WhiteElo "2542"]
[BlackElo "2670"]
[TimeControl "180+1"]
[EndTime "11:54:59 PDT"]
[Termination "zmeeed67 won on time"]

1. d4 {[%clk 0:03:00.9]} 1... d5 {[%clk 0:02:57.9]} 2. c4 {[%clk 0:03:01.2]}
2... c6 {[%clk 0:02:58.2]} 3. Nc3 {[%clk 0:03:01.6]} 3... Nf6 {[%clk 0:02:56.9]}
4. e3 {[%clk 0:03:01.9]} 4... a6 {[%clk 0:02:56.8]} 5. Bd3 {[%clk 0:03:00.6]}
5... b5 {[%clk 0:02:49.9]} 6. b3 {[%clk 0:03:00.1]} 6... Bg4 {[%clk 0:02:42.8]}
7. Nge2 {[%clk 0:02:59]} 7... Bxe2 {[%clk 0:02:35.7]} 8. Qxe2 {[%clk 0:02:57.8]}
8... e6 {[%clk 0:02:35.9]} 9. O-O {[%clk 0:02:56.5]} 9... Nbd7 {[%clk
0:02:35.6]} 10. e4 {[%clk 0:02:08.6]} 10... Bb4 {[%clk 0:02:13.9]} 11. Bb2
{[%clk 0:02:01.8]} 11... O-O {[%clk 0:01:30.3]} 12. Rad1 {[%clk 0:01:51.3]}
12... Bxc3 {[%clk 0:01:02.4]} 13. Bxc3 {[%clk 0:01:52.2]} 13... dxe4 {[%clk
0:01:01.3]} 14. Bxe4 {[%clk 0:01:53.1]} 14... Nxe4 {[%clk 0:01:01.7]} 15. Qxe4
{[%clk 0:01:54]} 15... Qc7 {[%clk 0:01:01.1]} 16. Rfe1 {[%clk 0:01:37.4]} 16...
Rfe8 {[%clk 0:00:54.7]} 17. Qg4 {[%clk 0:01:12.4]} 17... Nf6 {[%clk 0:00:53.3]}
18. Qf3 {[%clk 0:01:12.5]} 18... Rad8 {[%clk 0:00:20.9]} 19. h3 {[%clk
0:01:00.2]} 19... Qe7 {[%clk 0:00:12.8]} 20. Qxc6 {[%clk 0:00:56.2]} 20... bxc4
{[%clk 0:00:12.3]} 21. bxc4 {[%clk 0:00:55.8]} 21... Rc8 {[%clk 0:00:12.7]} 22.
Qa4 {[%clk 0:00:52]} 22... Qc7 {[%clk 0:00:12.9]} 23. c5 {[%clk 0:00:41]} 23...
Nd5 {[%clk 0:00:12.4]} 24. Bd2 {[%clk 0:00:34.6]} 24... Rb8 {[%clk 0:00:05.3]}
25. Qxa6 {[%clk 0:00:32.3]} 25... Rb2 {[%clk 0:00:05]} 26. Bc1 {[%clk
0:00:28.4]} 26... Rc2 {[%clk 0:00:03]} 27. Qa4 {[%clk 0:00:27]} 27... Rb8 {[%clk
0:00:01.4]} 28. Qxc2 {[%clk 0:00:27]} 28... h6 {[%clk 0:00:01.9]} 29. Be3 {[%clk
0:00:26]} 29... Qc6 {[%clk 0:00:02.1]} 30. Rb1 {[%clk 0:00:25.7]} 30... Ra8
{[%clk 0:00:02.7]} 31. Qb3 {[%clk 0:00:19.9]} 31... Qe8 {[%clk 0:00:01.6]} 32.
Qb5 {[%clk 0:00:19.5]} 1-0

[Event "*** Titled Tuesday Blitz"]
[Site "Chess.com"]
[Date "2021.04.20"]
[Round "10"]
[White "GregShahade"]
[Black "yuki_chess123"]
[Result "1-0"]
[WhiteElo "2684"]
[BlackElo "2277"]
[TimeControl "180+1"]
[EndTime "11:55:00 PDT"]
[Termination "GregShahade won by resignation"]

1. e4 {[%clk 0:03:00.9]} 1... g6 {[%clk 0:02:59.9]} 2. d4 {[%clk 0:03:00.5]}
2... Bg7 {[%clk 0:03:00.3]} 3. Nc3 {[%clk 0:03:01.2]} 3... c6 {[%clk 0:03:00.8]}
4. Nf3 {[%clk 0:02:58.7]} 4... d5 {[%clk 0:03:00.6]} 5. h3 {[%clk 0:02:50.2]}
5... f6 {[%clk 0:02:55.4]} 6. Bf4 {[%clk 0:02:39.4]} 6... Nh6 {[%clk 0:02:54.1]}
7. Qd2 {[%clk 0:02:36.2]} 7... Nf7 {[%clk 0:02:53.7]} 8. O-O-O {[%clk
0:02:28.7]} 8... O-O {[%clk 0:02:48.7]} 9. e5 {[%clk 0:02:26.7]} 9... fxe5
{[%clk 0:02:34.9]} 10. Nxe5 {[%clk 0:02:21.7]} 10... Nd7 {[%clk 0:02:26.6]} 11.
Nxf7 {[%clk 0:02:12.5]} 11... Rxf7 {[%clk 0:02:26.3]} 12. g3 {[%clk 0:02:05.6]}
12... e5 {[%clk 0:02:07.6]} 13. dxe5 {[%clk 0:01:53.7]} 13... Nxe5 {[%clk
0:02:05.9]} 14. Be2 {[%clk 0:01:39.7]} 14... Qf8 {[%clk 0:01:21.8]} 15. Kb1
{[%clk 0:01:24.5]} 15... Be6 {[%clk 0:01:16.2]} 16. h4 {[%clk 0:01:20.6]} 16...
Ng4 {[%clk 0:00:49.6]} 17. Rdf1 {[%clk 0:01:01.5]} 17... h5 {[%clk 0:00:20.1]}
18. Nd1 {[%clk 0:00:58.1]} 18... Re8 {[%clk 0:00:18.2]} 19. Bd3 {[%clk 0:00:57]}
19... Bf5 {[%clk 0:00:18]} 20. Bxf5 {[%clk 0:00:55.4]} 20... Rxf5 {[%clk
0:00:17.9]} 21. Ne3 {[%clk 0:00:49.1]} 21... Nxe3 {[%clk 0:00:17.9]} 22. Bxe3
{[%clk 0:00:48]} 22... Qf6 {[%clk 0:00:17.4]} 23. c3 {[%clk 0:00:47.2]} 23... b6
{[%clk 0:00:16.3]} 24. Bd4 {[%clk 0:00:44.9]} 24... Qe6 {[%clk 0:00:16.6]} 25.
Re1 {[%clk 0:00:40.9]} 25... Qf7 {[%clk 0:00:14.5]} 26. Rxe8+ {[%clk 0:00:40]}
26... Qxe8 {[%clk 0:00:14.8]} 27. Re1 {[%clk 0:00:40.6]} 27... Qf7 {[%clk
0:00:15]} 28. Bxg7 {[%clk 0:00:39.4]} 28... Kxg7 {[%clk 0:00:15.1]} 29. f4
{[%clk 0:00:39.3]} 29... Rf6 {[%clk 0:00:13.4]} 30. Qd4 {[%clk 0:00:39.3]} 30...
c5 {[%clk 0:00:13]} 31. Qe5 {[%clk 0:00:39]} 31... Kh7 {[%clk 0:00:13]} 32. a4
{[%clk 0:00:30]} 32... Rc6 {[%clk 0:00:12.8]} 33. Qe7 {[%clk 0:00:28]} 33... Rc7
{[%clk 0:00:11.8]} 34. Qg5 {[%clk 0:00:26.9]} 34... Qf5+ {[%clk 0:00:10.8]} 35.
Qxf5 {[%clk 0:00:27.3]} 35... gxf5 {[%clk 0:00:11.3]} 36. Re5 {[%clk 0:00:27.6]}
36... Rg7 {[%clk 0:00:10]} 37. Rxf5 {[%clk 0:00:27]} 37... Rxg3 {[%clk
0:00:09.9]} 38. Rxh5+ {[%clk 0:00:26.9]} 38... Kg6 {[%clk 0:00:09.5]} 39. Rg5+
{[%clk 0:00:26.6]} 39... Rxg5 {[%clk 0:00:08.9]} 40. fxg5 {[%clk 0:00:26.8]}
40... c4 {[%clk 0:00:09.4]} 1-0

[Event "*** Titled Tuesday Blitz"]
[Site "Chess.com"]
[Date "2021.04.20"]
[Round "10"]
[White "PowerThinking2650"]
[Black "Kislov_Oleg"]
[Result "1-0"]
[WhiteElo "2414"]
[BlackElo "2484"]
[TimeControl "180+1"]
[EndTime "11:55:05 PDT"]
[Termination "PowerThinking2650 won by resignation"]

1. e4 {[%clk 0:03:00.9]} 1... c5 {[%clk 0:02:59.6]} 2. Nf3 {[%clk 0:03:01.1]}
2... Nc6 {[%clk 0:02:59.4]} 3. d4 {[%clk 0:03:01.7]} 3... cxd4 {[%clk
0:02:59.8]} 4. Nxd4 {[%clk 0:03:02.4]} 4... e5 {[%clk 0:03:00]} 5. Nb5 {[%clk
0:03:02.6]} 5... d6 {[%clk 0:03:00.2]} 6. N1c3 {[%clk 0:03:01.9]} 6... a6 {[%clk
0:02:59.7]} 7. Na3 {[%clk 0:03:02.5]} 7... b5 {[%clk 0:02:59.9]} 8. Nd5 {[%clk
0:03:02.3]} 8... Nge7 {[%clk 0:02:59.6]} 9. c4 {[%clk 0:03:02.3]} 9... Nd4
{[%clk 0:02:59.2]} 10. cxb5 {[%clk 0:03:00.2]} 10... Nxd5 {[%clk 0:02:59.3]} 11.
exd5 {[%clk 0:03:00.9]} 11... Qh4 {[%clk 0:03:00]} 12. Bd3 {[%clk 0:02:51.7]}
12... Be7 {[%clk 0:02:49.8]} 13. O-O {[%clk 0:02:49.6]} 13... O-O {[%clk
0:02:47.6]} 14. bxa6 {[%clk 0:02:44.8]} 14... f5 {[%clk 0:02:42.5]} 15. Nc2
{[%clk 0:02:37.3]} 15... Nxc2 {[%clk 0:02:32.1]} 16. Qxc2 {[%clk 0:02:35.7]}
16... e4 {[%clk 0:02:30.3]} 17. Qc6 {[%clk 0:02:20.6]} 17... f4 {[%clk
0:02:10.1]} 18. Bxe4 {[%clk 0:01:00]} 18... Bxa6 {[%clk 0:02:02.7]} 19. Re1
{[%clk 0:00:35.2]} 19... Rfc8 {[%clk 0:01:27.6]} 20. Qd7 {[%clk 0:00:29.2]}
20... Rd8 {[%clk 0:01:22.3]} 21. Bxh7+ {[%clk 0:00:26.3]} 21... Kxh7 {[%clk
0:01:16]} 22. Qxe7 {[%clk 0:00:25.6]} 22... Qxe7 {[%clk 0:01:02]} 23. Rxe7
{[%clk 0:00:26.5]} 23... f3 {[%clk 0:00:58.1]} 24. Bd2 {[%clk 0:00:20.4]} 24...
Bc4 {[%clk 0:00:56.3]} 25. Bc3 {[%clk 0:00:19.3]} 25... Rg8 {[%clk 0:00:52.1]}
26. a4 {[%clk 0:00:18.1]} 26... Bxd5 {[%clk 0:00:50.9]} 27. gxf3 {[%clk
0:00:17]} 27... Bxf3 {[%clk 0:00:48.1]} 28. a5 {[%clk 0:00:16.7]} 28... Rae8
{[%clk 0:00:40.1]} 29. Rae1 {[%clk 0:00:15.4]} 29... Rc8 {[%clk 0:00:32.4]} 30.
h3 {[%clk 0:00:14.6]} 30... Rc5 {[%clk 0:00:32.2]} 31. Kh2 {[%clk 0:00:13.9]}
31... Kg6 {[%clk 0:00:25.2]} 32. Rg1+ {[%clk 0:00:13.2]} 32... Kf5 {[%clk
0:00:24.4]} 33. Rgxg7 {[%clk 0:00:12.5]} 33... Rxg7 {[%clk 0:00:24.4]} 34. Rxg7
{[%clk 0:00:13.2]} 34... Ke4 {[%clk 0:00:22.1]} 35. Kg3 {[%clk 0:00:13.4]} 35...
Rf5 {[%clk 0:00:19.1]} 36. Re7+ {[%clk 0:00:12.2]} 36... Kd3 {[%clk 0:00:18.5]}
37. Re3+ {[%clk 0:00:11.3]} 1-0

[Event "*** Titled Tuesday Blitz"]
[Site "Chess.com"]
[Date "2021.04.20"]
[Round "10"]
[White "draksbg"]
[Black "sokidze"]
[Result "0-1"]
[WhiteElo "2585"]
[BlackElo "2765"]
[TimeControl "180+1"]
[EndTime "11:55:06 PDT"]
[Termination "sokidze won by resignation"]

1. e4 {[%clk 0:02:59.1]} 1... c5 {[%clk 0:02:58.6]} 2. Nf3 {[%clk 0:02:59.3]}
2... Nc6 {[%clk 0:02:59.2]} 3. Bb5 {[%clk 0:02:59]} 3... g6 {[%clk 0:02:59.3]}
4. O-O {[%clk 0:02:59.1]} 4... Bg7 {[%clk 0:02:59.4]} 5. c3 {[%clk 0:02:58.3]}
5... e5 {[%clk 0:02:59.7]} 6. Re1 {[%clk 0:02:54.8]} 6... Nge7 {[%clk
0:02:58.2]} 7. a3 {[%clk 0:02:47.8]} 7... O-O {[%clk 0:02:53.3]} 8. b4 {[%clk
0:02:47.2]} 8... d6 {[%clk 0:02:50.1]} 9. Bb2 {[%clk 0:02:45.6]} 9... a6 {[%clk
0:02:43.4]} 10. Bf1 {[%clk 0:02:44.6]} 10... h6 {[%clk 0:02:33.2]} 11. h3 {[%clk
0:02:44.7]} 11... f5 {[%clk 0:02:25.6]} 12. d4 {[%clk 0:02:37.3]} 12... fxe4
{[%clk 0:02:15.7]} 13. Rxe4 {[%clk 0:02:34.8]} 13... exd4 {[%clk 0:02:14.6]} 14.
cxd4 {[%clk 0:02:31.9]} 14... d5 {[%clk 0:02:04.9]} 15. Re1 {[%clk 0:02:21.5]}
15... c4 {[%clk 0:02:01.6]} 16. Nc3 {[%clk 0:02:20.5]} 16... Nf5 {[%clk
0:01:48.9]} 17. Ne5 {[%clk 0:02:10.4]} 17... Nxe5 {[%clk 0:01:39.4]} 18. dxe5
{[%clk 0:02:10.5]} 18... Be6 {[%clk 0:01:40.1]} 19. Ne2 {[%clk 0:02:03.4]} 19...
g5 {[%clk 0:01:40]} 20. Nd4 {[%clk 0:02:02.9]} 20... Nxd4 {[%clk 0:01:40.2]} 21.
Bxd4 {[%clk 0:01:58.4]} 21... Rc8 {[%clk 0:01:39.5]} 22. Qd2 {[%clk 0:01:57.2]}
22... Rf4 {[%clk 0:01:37.7]} 23. g3 {[%clk 0:01:53.4]} 23... Rf3 {[%clk
0:01:26.2]} 24. Re3 {[%clk 0:01:49.5]} 24... Rxe3 {[%clk 0:01:20.8]} 25. Qxe3
{[%clk 0:01:50.4]} 25... Qd7 {[%clk 0:01:21.5]} 26. Kh2 {[%clk 0:01:46.7]} 26...
b5 {[%clk 0:01:21.6]} 27. Rd1 {[%clk 0:01:45.9]} 27... Rf8 {[%clk 0:01:18.8]}
28. Bg2 {[%clk 0:01:45.5]} 28... Rf5 {[%clk 0:01:13.2]} 29. Bc3 {[%clk
0:01:39.8]} 29... Qf7 {[%clk 0:01:08.9]} 30. Kg1 {[%clk 0:01:39.5]} 30... h5
{[%clk 0:01:03.4]} 31. Qe2 {[%clk 0:01:34.4]} 31... h4 {[%clk 0:01:00.4]} 32. g4
{[%clk 0:01:15.3]} 32... Rf4 {[%clk 0:01:00]} 33. Bd2 {[%clk 0:01:07]} 33... d4
{[%clk 0:00:48.3]} 34. Bxf4 {[%clk 0:01:04.3]} 34... Qxf4 {[%clk 0:00:49.2]} 35.
Qe4 {[%clk 0:01:02.4]} 35... Qxe4 {[%clk 0:00:47.3]} 36. Bxe4 {[%clk 0:01:03.3]}
36... Bxe5 {[%clk 0:00:48]} 37. f4 {[%clk 0:00:59.4]} 37... Bxf4 {[%clk
0:00:45.1]} 38. Kg2 {[%clk 0:01:00]} 38... d3 {[%clk 0:00:43.9]} 39. Kf3 {[%clk
0:00:55.5]} 39... Kf7 {[%clk 0:00:40.2]} 40. Bxd3 {[%clk 0:00:55.3]} 40... cxd3
{[%clk 0:00:40.3]} 41. Rxd3 {[%clk 0:00:56.2]} 41... Ke7 {[%clk 0:00:37.8]} 42.
Ke4 {[%clk 0:00:55.3]} 42... Bc4 {[%clk 0:00:30.4]} 43. Rd1 {[%clk 0:00:53.2]}
43... Ke6 {[%clk 0:00:30.3]} 44. Rd8 {[%clk 0:00:53.2]} 44... Bf1 {[%clk
0:00:30.6]} 45. Rh8 {[%clk 0:00:41.2]} 45... Bg2+ {[%clk 0:00:28.8]} 46. Kd3
{[%clk 0:00:40.8]} 46... Bxh3 {[%clk 0:00:29.3]} 47. Rh6+ {[%clk 0:00:41.5]}
47... Ke5 {[%clk 0:00:24.3]} 0-1